Cogmind - Beta 13 @@@ ROGUE MODE // 2024.06.25 @ 22:37:40 Player: MooMoo Result: Destroyed by S-10 Pest with Light Assault Rifle Performance ------------- Evolutions (1) 500 Regions Visited (2) 400 Robots Destroyed (15) 75 Value Destroyed (463) 463 Prototype IDs (0) 0 Alien Tech Used (0) 0 Bonus (0) 0 TOTAL SCORE: 1438 Bonus ------- None Cogmind --------- Core Integrity 0/400 Matter 300/300 Energy 100/100 System Corruption 0% Temperature Cool (0) Movement Core (250) Ox4 Location -9/Materials Parts ------- > --- POWER (1) -------- (None) > --- PROPULSION (3) --- (None) > --- UTILITY (3) ------ Small Storage Unit Medium Storage Unit > --- WEAPON (2) ------- (None) > --- INVENTORY (10) --- Aluminum Leg Improved Heat Sink Transport Network Coupler ECM Suite ECM Suite Hardened Light Armor Plating Small Laser Mining Claw Peak State ------------ > --- POWER ------------ Light Ion Engine > --- PROPULSION ------- Aluminum Leg Aluminum Leg Aluminum Leg > --- UTILITY ---------- Small Storage Unit High-capacity Matter Pod Hardened Light Armor Plating > --- WEAPON ----------- Medium Laser Beam Rifle > --- INVENTORY -------- Ion Engine Light Treads Light Treads Aluminum Leg ECM Suite ECM Suite Mining Claw [Rating: 11] Favorites ----------- Power Light Ion Engine Engine Light Ion Engine Propulsion Aluminum Leg Treads Light Treads Leg Aluminum Leg Wheel Compact Wheel Utility Small Storage Unit Storage Small Storage Unit Protection Hardened Light Armor Plating Weapon Medium Laser Energy Gun Medium Laser Ballistic Gun Assault Rifle Slashing Weapon Mining Claw Build | -11 -10 -9 ------- Run | Yrd Mat Mat Slots Evolved 2 | . . 2 Power . | . . . Propulsion 1 | . . 1 Utility 1 | . . 1 Weapon . | . . . Parts Attached 25 | 6 5 14 Power 3 | 1 1 1 Engine 3 | 1 1 1 Core . | . . . Reactor . | . . . Propulsion 8 | 2 2 4 Treads 2 | . . 2 Leg 4 | . 2 2 Wheel 2 | 2 . . Hover . | . . . Flight . | . . . Utility 5 | 1 1 3 Device . | . . . Storage 3 | 1 1 1 Processor . | . . . Hackware . | . . . Protection 2 | . . 2 Artifact . | . . . Weapon 9 | 2 1 6 Energy Gun 5 | 1 1 3 Energy Cannon . | . . . Ballistic Gun 1 | 1 . . Ballistic Cannon . | . . . Launcher . | . . . Special Weapon . | . . . Impact Weapon . | . . . Slashing Weapon 3 | . . 3 Piercing Weapon . | . . . Special Melee Weapon . | . . . Unidentified Prototypes . | . . . Parts Lost 18 | . 3 15 Power 3 | . 1 2 Propulsion 6 | . 1 5 Utility 3 | . . 3 Weapon 6 | . 1 5 Highest Loss Streak 7 | . 2 7 To Critical Strikes . | . . . Average Slot Usage (%) 89 | . 96 85 Engine 11 | . 13 10 Treads 1 | . . 1 Leg 19 | . 10 24 Wheel 6 | . 16 . Storage 22 | . 27 19 Protection 6 | . . 9 Energy Gun 15 | . 20 13 Ballistic Gun 2 | . 7 . Slashing Weapon 3 | . . 5 Naked Turns . | . . . Heaviest Build 29 | 12 16 29 Greatest Support 40 | 26 26 40 Greatest Overweight (x) 4 | . 1 4 Average Overweight (x) . | . . . Largest Inventory Capacity 10 | 8 8 10 Average Capacity 8 | 6 8 8 Most Carried 9 | 6 8 9 Average Carried 7 | 3 7 7 Final Capacity 10 | 8 8 10 Final Carried 8 | 6 8 8 Class Distribution -------------------- 100% | Mutant Dominant Class ---------------- Mutant | -10/Materials Mutant | -9/Materials Resources | -11 -10 -9 ----------- Run | Yrd Mat Mat Matter Collected 594 | 219 289 86 Remotely . | . . . Salvage Created 683 | . 401 282 Parts 28 | . 15 13 Haulers Intercepted 1 | . . 1 Recyclers Shooed . | . . . Parts Field Recycled . | . . . Retrieved Matter . | . . . Parts Self-Destructed . | . . . Prevented . | . . . Kills | -11 -10 -9 ------- Run | Yrd Mat Mat Combat Hostiles Destroyed 13 | . 8 5 Melee 3 | . . 3 Guns 10 | . 8 2 Classes Destroyed 3 | . 2 1 Hauler 1 | . . 1 Recycler 1 | . 1 . Grunt 13 | . 8 5 Best Kill Streak 4 | . 4 2 Combat Bots Only 3 | . 3 2 Max Kills in Single Turn 2 | . 2 1 Gunslinging 1 | . 1 . Exploded . | . . . Melee 1 | . . 1 Uniques/NPCs Destroyed . | . . . Combat | -11 -10 -9 -------- Run | Yrd Mat Mat Hostile Shots Fired 269 | . 41 228 Missed 79 | . 12 67 Damage Taken 2370 | . 345 2025 Core 454 | . 49 405 Absorbed by Shields . | . . . Regen/Repaired (Parts) 41 | . . 41 Core Remaining (%) 90 | 100 80 . Volleys Fired 50 | . 33 17 Largest 2 | . 2 2 Hottest 106 | . 90 106 Shots Fired 97 | . 64 33 Gun 97 | . 64 33 Cannon . | . . . Launcher . | . . . Special . | . . . Kinetic 23 | . 23 . Thermal 74 | . 41 33 Explosive . | . . . Electromagnetic . | . . . Robot Hit Streak 11 | . 11 6 Robot Miss Streak 4 | . 2 4 Penetration Max . | . . . Secondary Targets 2 | . 2 . Max Gunslinging Chain 1 | . 1 . Shots Hit Robots 81 | . 44 37 Core Hits 31 | . 20 11 Critical Kills 1 | . 1 . Critical Parts Destroyed . | . . . Critical Strikes 5 | . 3 2 Burn 4 | . 2 2 Destroy 1 | . 1 . Melee Attacks 17 | . . 17 Impact . | . . . Slashing 17 | . . 17 Piercing . | . . . Sneak Attacks 1 | . . 1 Combat Hostiles . | . . . Follow-up Attacks 4 | . . 4 Damage Inflicted 1221 | . 599 622 Guns 917 | . 599 318 Cannons . | . . . Explosions . | . . . Melee 304 | . . 304 Ramming . | . . . Kinetic 197 | . 197 . Thermal 720 | . 402 318 Explosive . | . . . Electromagnetic . | . . . Impact . | . . . Slashing 304 | . . 304 Piercing . | . . . Highest Corruption . | . . . Average Corruption . | . . . Corruption Purged . | . . . Corruption Blocked . | . . . Overload Shots . | . . . Overflow Damage . | . . . Projectiles . | . . . Explosions . | . . . Melee . | . . . Knockbacks . | . . . Impact . | . . . Kinetic . | . . . Secondary . | . . . Self-Inflicted Damage . | . . . Shots . | . . . Rammed . | . . . Targets Rammed . | . . . Kicked . | . . . Crushed . | . . . Highest Temperature 336 | . 147 336 Average Temperature 104 | . 49 158 Received Heat Transfer 1140 | . 210 930 Effects 3 | . . 3 Energy Bleed 1 | . . 1 Interference 2 | . . 2 Siege Activations . | . . . Robots Corrupted . | . . . Combat Hostiles . | . . . Parts Fried . | . . . Impact Corruptions . | . . . Robots Melted . | . . . Combat Hostiles . | . . . Parts Melted 8 | . 7 1 Heat Transferred 2297 | . 1285 1012 Parts Sabotaged . | . . . Parts Stolen . | . . . Parts Stripped . | . . . Power Chain Reactions . | . . . Alert | -11 -10 -9 ------- Run | Yrd Mat Mat Peak Influence 205 | . 205 171 Initial 86 | . . 86 Average 94 | . 119 90 Maximum Alert Level 1 | . 1 . Low Security (%) 99 | 100 97 100 Level 1 . | . 2 . Level 2 . | . . . Level 3 . | . . . Level 4 . | . . . Level 5 . | . . . High Security . | . . . Max Security . | . . . Squads Dispatched 5 | . 4 1 Investigation 3 | . 2 1 Extermination . | . . . Reinforcement 2 | . 2 . Assault . | . . . Garrison . | . . . Intercept . | . . . Searches Triggered . | . . . Construction Impeded . | . . . Haulers Reinforced . | . . . Active Scanning Responses . | . . . Cargo Convoy Interrupts . | . . . Stealth | -11 -10 -9 --------- Run | Yrd Mat Mat Distress Signals 1 | . . 1 Communications Jammed . | . . . Distress Signals . | . . . Times Spotted 33 | . 11 22 Peak Tracking Total 9 | . 3 9 Tactical Retreats 2 | . . 2 Traps | -11 -10 -9 ------- Run | Yrd Mat Mat Traps Triggered 1 | . . 1 Indirectly . | . . . Trap Hack Attempts . | . . . Triggered . | . . . Disarmed . | . . . Reprogrammed . | . . . Reused . | . . . Traps Extracted . | . . . Installed . | . . . Triggered . | . . . Machines | -11 -10 -9 ---------- Run | Yrd Mat Mat Machines Disabled . | . . . Max in Single Turn . | . . . Machines Repaired . | . . . Machines Dismantled . | . . . Machines Sabotaged . | . . . Overloaded Fab Kills . | . . . Hacking | -11 -10 -9 --------- Run | Yrd Mat Mat Machines Accessed 3 | . 2 1 Terminals . | . . . Fabricators . | . . . Repair Stations 1 | . . 1 Recycling Units 2 | . 2 . Scanalyzers . | . . . Garrison Access . | . . . Total Hacks 8 | . 5 3 Successful 6 | . 4 2 Failed 2 | . 1 1 Catastrophic . | . . . Database Lockouts . | . . . Manual . | . . . Terminals . | . . . Fabricators . | . . . Repair Stations 3 | . . 3 Recycling Units 5 | . 5 . Scanalyzers . | . . . Garrison Access . | . . . Terminal Hacks . | . . . Fabricator Hacks . | . . . Repair Station Hacks 2 | . . 2 Scan Component 1 | . . 1 Repair 1 | . . 1 Recycling Unit Hacks 4 | . 4 . Process 1 | . 1 . Report Inventory 1 | . 1 . Retrieve Matter 2 | . 2 . Scanalyzer . | . . . Garrison Access Hacks . | . . . Unauthorized Hacks . | . . . Terminals . | . . . Fabricators . | . . . Repair Stations . | . . . Recycling Units . | . . . Scanalyzers . | . . . Garrison Access . | . . . Data Cores Recovered . | . . . Used . | . . . Hacking Detections 1 | . 1 . Full Trace Events 1 | . 1 . Feedback Events . | . . . Feedback Blocked . | . . . Robot Schematics Acquired . | . . . Robots Built . | . . . Authchips . | . . . Time . | . . . Total Robot Build Rating . | . . . Part Schematics Acquired . | . . . Parts Built . | . . . Authchips . | . . . Time . | . . . Total Part Build Rating . | . . . Parts Repaired 1 | . . 1 Time 26 | . . 26 Parts Recycled . | . . . Recycled Matter 15 | . 15 . Retrieved Matter . | . . . Retrieved Components . | . . . Parts Scanalyzed . | . . . Part Schematics Acquired . | . . . Parts Damaged . | . . . Bothacking | -11 -10 -9 ------------ Run | Yrd Mat Mat Used RIF Installer . | . . . Robots Hacked . | . . . Non-combat . | . . . Combat . | . . . Robot Hacks Applied . | . . . Relay Couplers Released . | . . . Fabnet Peak Effective % . | . . . Robots Rewired . | . . . Allies Hacked . | . . . Hacks Repelled . | . . . Allies | -11 -10 -9 -------- Run | Yrd Mat Mat Total Allies . | . . . Largest Group . | . . . Highest-Rated Group . | . . . Highest-Rated Ally . | . . . Total Orders . | . . . Ally Attacks . | . . . Total Damage . | . . . Kills . | . . . Allies Corrupted . | . . . Allies Melted . | . . . Intel | -11 -10 -9 ------- Run | Yrd Mat Mat Robot Analysis Total . | . . . Derelict Logs Recovered . | . . . Drone Launches . | . . . Drone Recoveries . | . . . Exploration | -11 -10 -9 ------------- Run | Yrd Mat Mat Turns Passed 821 | 57 280 484 Spaces Moved 405 | 55 149 201 Core 25 | 18 . 7 Treads 28 | . . 28 Legs 227 | . 61 166 Wheels 125 | 37 88 . Hover . | . . . Flight . | . . . Fastest Speed 50 | 50 90 120 Average Speed 116 | 76 102 138 Slowest Speed 250 | 90 190 250 Overloaded Moves . | . . . Propulsion Burnouts . | . . . Robots Hopped . | . . . Cave-ins Triggered . | . . . Exploration Rate (%) 16 | 3 22 24 Regions Visited 2 Branch Regions . Pre-discovered Areas . | . . . Known Exits Taken . | . . . Unknown Exits Taken 2 | 1 1 . Scrap Searched . | . . . Spaces Dug . | . . . Terrain Destroyed . | . . . Melee . | . . . Projectile . | . . . AOE . | . . . Terrain Rammed . | . . . Walls Destroyed . | . . . Machines Disabled . | . . . Actions | -11 -10 -9 --------- Run | Yrd Mat Mat Total 621 | 67 210 344 Wait 113 | . 20 93 Move 403 | 54 148 201 Hop . | . . . Pick Up 15 | 7 3 5 Fast Attach 14 | 5 4 5 Attach 8 | 1 1 6 Detach . | . . . Swap 3 | . . 3 Drop 2 | . 1 1 Fire 50 | . 33 17 Melee 13 | . . 13 Ram . | . . . Kick . | . . . Crush . | . . . Escape Stasis . | . . . Rewire . | . . . Trap . | . . . Miscellaneous . | . . . Route ------- -11/Scrapyard -10/Materials -9/Materials History --------- Turn | Location | Event 8 | -11/Scrapyard | Discovered new exit (range 16) 58 | -11/Scrapyard | Entered Materials 308 | -10/Materials | Build established: Mutant 322 | -10/Materials | Discovered new exit (range 5) 338 | -10/Materials | Entered another Materials area 338 | -9/Materials | Evolved 2 slots: Propulsion x1, Utility x1 405 | -9/Materials | Repaired Sml. Laser 689 | -9/Materials | Lost 7 parts (1p2n1u3w) 752 | -9/Materials | Core integrity fell below 50% 791 | -9/Materials | Core integrity fell below 20% 822 | -9/Materials | Destroyed by S-10 Pest with Light Assault Rifle Last Messages --------------- 00747_ K-01 Serf collects debris. 00753_ Critical hit (Burn: +37). 00753_ Aluminum Leg destroyed. 00754_ K-01 Serf collects debris. 00755_ Mining Claw follow-up attack on G-47 Trooper. 00755_ G-47 Trooper Imp. Heat Sink ripped off. 00759_ K-01 Serf collects debris. 00761_ Hrd. Light Armor Plating destroyed. 00763_ K-01 Serf collects debris. 00769_ Critical hit (Burn: +37). 00772_ K-01 Serf collects debris. 00773_ M-13 Machinist fits Backup Plating I on G-47 Trooper. 00777_ Mining Claw destroyed. 00790_ G-34 Mercenary destroyed. 00793_ Mining Claw destroyed. 00793_ K-01 Serf collects debris. 00799_ Lgt. Treads destroyed. 00805_ Ion Engine destroyed. Map ----- +----------------------------------------------------+ | #####???????? ????????????????????????????? | | ????????????"?????????????????????????????? | | ??????????? ?????????????????????????????? | | ###########+######## ?????????????????????? | | ????????????????????? | | ????????????????????? | | % ????????????????????? | | ##### #######???????????????????????????? | | #?# #?????????????????????????????????? | | #?# *[#?????????????????????????????????? | | #?# [%/ ????????????????????????????????? | | #?# [# "??????????????????????????????? | | " #?# =# """????????????????????????????? | | " #?# #? """"???????????????????????????? | | " #?# #?? ???????????????????????????? | | #?# #?? ????? ????????????????????? | | ###?# #???######### ????????????????????? | | ##### ####### # ????????????????????? | | !% # ????????????????????? | | * # ????????????????????? | | # ????????????????????? | | #####"######## # ????#+###???????????? | | ?????? ???????## ## #??? #???????????? | | ???????????????# ##a#### #???????????? | | ???????????????# ## #???????????? | | ??????????????# ## @ #???????????? | | ??????????????# ## """ #???????????? | | ??????????????# ## """ #???????????? | | ??????????????## ## """ #???????????? | | ??????????????# # #???????????? | | ??????????????# #s #???????????? | | ??????????????# ms w #???????????? | | ??????????????# ##### #???????????? | | ??????????????# #???# #???????????? | | ??????????????### ###????## ###???????????? | | ????????????????# ????????? #?????????????? | | ????????????????# ????????? #?????????????? | | ????????????????# ????????? #?????????????? | | ????????????????# ??????????#?????????????? | | ???????????????? ????????????????????????? | | ???????????????? ????????????????????????? | | ???????????????? ????????????????????????? | | ???????????????? ?????????????????????????? | | ???????????????? ?????????????????????????? | | ????????????????#?????????????????????????? | | ??????????????????????????????????????????? | | ??????????????????????????????????????????? | | ??????????????????????????????????????????? | | ??????????????????????????????????????????? | | ??????????????????????????????????????????? | +----------------------------------------------------+ Best States ------------- Heat Dissipation 28 Energy Generation 10 Energy Capacity 250 Matter Stores 445 Matter Capacity 500 Sight Range 16 Terrain Scan Density 10 Armor Coverage 300 Evasion (%) 55 Recoil Reduction 2 Item Schematics ----------------- None Robot Schematics ------------------ None Fabricated ------------ Nothing Alien Tech Used ----------------- None Achievements -------------- None Challenges ------------ None Game ------ Seed HeavyGuidanceFrame Manual? 0 Play Time 00:24:08 Cumulative 4.4 hours Start 2024.06.25 @ 22:04:03 End 2024.06.25 @ 22:37:40 Sessions 1 Manual Loads 0 Difficulty Rogue Special Mode None Game No. 3 Rogue 3 Adventurer 0 Explorer 0 Win Type - Total 0 Types 0/0/0/0/0/0/0/0/0 Lore% 1 Gallery% 7 Achievement% 7 Wizard Run 0 Options --------- Layout 1 ASCII 0 Keyboard 0 Movement Mouse Keybinds 0 Fullscreen 1 Font 24/Smallcaps Map View 50x35 Zoom Use 0% Tactical HUD 1 Map Filters NONE Filters NONE Steam 1 RUN: 23e5ca69-bb6f-4aaf-826d-468ab6117e89